{"text_format":"1","workbook":"xlsx","n_sheets":5,"sheets":["Home","Database","Support","Bedinfo","Sheet2"],"not_rendered":{"charts":0,"images":0,"macros":1,"external_links":0,"defined_names":1,"comments":0,"pivot_tables":0},"unopened":[],"bounds":{"document_bytes":16777216,"sheet_cells":100000,"rows_first":2000,"rows_last":500,"rows_between":2000,"halvings":0,"cell_chars":16384,"cell_head_chars":4096},"cells_cut":0,"cells_raw":0,"read":"whole","date_system":"1900"}

{"sheet":"Home","index":0,"n_rows":4,"n_cols":5,"rows_kept":4,"cut":false,"hidden":true,"merged":[[3,4,5,14]]}
[]
[]
[]
[null,null,null,null,"Room Booking Form"]

{"sheet":"Database","index":1,"n_rows":4,"n_cols":25,"rows_kept":4,"cut":false,"hidden":true,"merged":[]}
["S.NO","R Card NO","Guest Name","Addres","Country","Company","Arrival","Deparue","Days","Adult","Children","Room","Room Type","Meals","ID type","ID Number","Reat P.P","Total Charges","Other Charges","Sub Total","Discount","AmountPad","Balance","status","Notes"]
[{"$f":"ROW()-1","v":1},"01-00002","Alaa","Egypt","Bahamas, The","Booking,com","2020-01-01","2020-03-01",2,1,3," 102 Standard Room","Single","B.O","Passport",123,100,200,50,250,20,220,30,"Check IN"]
[{"$f":"ROW()-1","v":2},"01-00003","Alaa Mohamed Mohamed Ali","Egypt - Aswan","American Samoa","Booking,com","2020-06-25","2020-06-28",3,1,0," 104 Standard Room","Double","ALL SOFT","Passport",123456,100,300,100,400,100,200,100,"Check IN"]
[{"$f":"ROW()-1","v":3},"01-00004","Ahmed Ali","Egypt","Aland","Booking,com","2020-06-25","2020-06-27",2,1,2," 114 Deluxe Room","Double","Bed & Brakfast","ID",1234,100,200,100,300,50,250,0,"Check IN"]

{"sheet":"Support","index":2,"n_rows":37,"n_cols":7,"rows_kept":37,"cut":false,"hidden":true,"merged":[]}
["Room","Meals","status","Room Type","Country","Combany","ID Type"]
[" 101 Standard Room","B.O","Reservation","Single","Abkhazia","Booking,com","ID"]
[" 102 Standard Room","Bed & Brakfast","Check IN","Double","Afghanistan",null,"Passport"]
[" 103 Standard Room","H.B","Check OUT",null,"Akrotiri",null,"Driver License"]
[" 104 Standard Room","F.B",null,null,"Aland"]
[" 105 Standard Room","ALL SOFT",null,null,"Albania"]
[" 106 Standard Room","ALL HARD",null,null,"Algeria"]
[" 107 Standard Room",null,null,null,"American Samoa"]
[" 108 Standard Room",null,null,null,"Andorra"]
[" 109 Standard Room",null,null,null,"Angola"]
[" 110 Standard Room",null,null,null,"Anguilla"]
[" 111 Deluxe Room",null,null,null,"Antigua and Barbuda"]
[" 112 Deluxe Room",null,null,null,"Argentina"]
[" 114 Deluxe Room",null,null,null,"Armenia"]
[" 115 Deluxe Room",null,null,null,"Aruba"]
[" 116 Deluxe Room",null,null,null,"Ascension Island"]
[" 117 Deluxe Room",null,null,null,"Australia"]
[null,null,null,null,"Austria"]
[null,null,null,null,"Azerbaijan"]
[null,null,null,null,"Bahamas, The"]
[null,null,null,null,"Bahrain"]
[null,null,null,null,"Bangladesh"]
[null,null,null,null,"Barbados"]
[null,null,null,null,"Belarus"]
[null,null,null,null,"Belgium"]
[null,null,null,null,"Belize"]
[null,null,null,null,"Benin "]
[null,null,null,null,"Bermuda"]
[null,null,null,null,"Bhutan"]
[null,null,null,null,"Bolivia"]
[null,null,null,null,"Bosnia and Herzegovina"]
[null,null,null,null,"Botswana"]
[null,null,null,null,"Brazil"]
[null,null,null,null,"Brunei"]
[null,null,null,null,"Bulgaria"]
[null,null,null,null,"Burkina Faso "]
[null,null,null,null,"Burundi"]

{"sheet":"Bedinfo","index":3,"n_rows":22,"n_cols":6,"rows_kept":22,"cut":false,"hidden":false,"merged":[]}
["Room Number","Floor","Room Type","Bed NO","Room Statuse","Reat /Day"]
["101 standerd","Ground","Single",1,null,200]
["102 standerd","Ground","Single",1,null,{"$f":"+F2+50","v":250}]
["103 standerd","Ground","Single",1,null,{"$f":"+F3+50","v":300}]
["104 standerd","Ground","Single",1,null,{"$f":"+F4+50","v":350}]
["105 standerd","Ground","Single",1,null,400]
["106 standerd","Ground","Single",1,null,450]
["107 standerd","Ground","Single",1,null,500]
["108 standerd","Ground","Single",1,null,550]
["109 standerd","Ground","Single",1,null,600]
["110 standerd","Ground","Single",1,null,650]
["111 standerd","1st floor","Double",2,null,700]
["112 standerd","1st floor","Double",2,null,750]
["113 standerd","1st floor","Double",2,null,800]
["114 standerd","1st floor","Double",2,null,850]
["115 standerd","1st floor","Double",2,null,900]
["116 standerd","1st floor","Double",2,null,950]
["117 standerd","1st floor","Double",2,null,1000]
["118 standerd","1st floor","Double",2,null,1050]
["119 standerd","1st floor","Double",2,null,1100]
["120 standerd","1st floor","Double",2,null,1150]
["121 standerd","1st floor","Double",2,null,1200]

{"sheet":"Sheet2","index":4,"n_rows":1,"n_cols":19,"rows_kept":1,"cut":false,"hidden":false,"merged":[]}
["checkin data","vlstor ID","NAME","Address","Purparty","photo ducmant","photo ID NO","Advanced","floor","Room Type","Roon NO","Bed NO","CHECK OUT","Total Days","Reat","Amount","GST","NET","Transaction ID"]